Workbook

Sheet InputSheet
A1: Parameter | B1: Units | C1: Type | D1: Default | E1: *selected* | G1: end
A2: Rail Name | C2: Req | E2: EVM Example | F2: charger
A3: Part Number | C3: Req | E3: TPS54J061 | F3: TPS54J061
A4: Vin_min | B4: V | C4: Opt | D4: Vin_nom*0.8 | E4: 9.6 | F4: 9
A5: Vin_nom | B5: V | C5: Req | E5: 12 | F5: 12 | H5: Sheet Descriptions:
A6: Vin_max | B6: V | C6: Opt | D6: Vin_nom*1.1 | E6: 13.2 | F6: 15 | H6: InputSheet = sheet with simplified input for checking component values with the macros described below
A7: Vout | B7: V | C7: Req | E7: 1.8 | F7: 3.63 | H7: DeviceCalculator = sheet where all calculations are done. This sheet can be used by itself to select or check component values.
A8: Iout | B8: A | C8: Opt | D8: Io_max_IC | E8: 6 | F8: 1
A9: dVo_ripple_perc | C9: Opt | D9: 0.01 | E9: 0.01 | F9: 0.01 | H9: Macro Directions:
A10: dVo_trans_perc | C10: Opt | D10: 0.04 | E10: 0.025 | F10: 0.03 | H10: Check/Calculate Selected Column
A11: Io_step | B11: A | C11: Opt | D11: Iout*0.5 | E11: 3 | F11: 0.5 | H11: Select any cell in the column of the design you would like to check.
A12: R_mode | C12: Req | D12: R_mode_rec | E12: Connect to AGND | F12: Connect to VCC | H12: Click on the Check/Calculate to send the input values to the DeviceCalculator worksheet.
A13: fsw_select | B13: kHz | C13: Calc | E13: 1100 | F13: 1100 | H13: The calculated results on the DeviceCalculator worksheet are then pulled back to this sheet to check the component values used.
A14: LL_mode_select | C14: Calc | E14: FCCM | F14: DCM
A15: Lout | B15: µH | C15: Opt | D15: L_rec | E15: 1 | F15: 3.3 | H15: Insert New Design
A16: DCR | B16: mΩ | C16: Opt | D16: Rdson_LS | E16: 9.2 | F16: 25.9 | H16: Click on Insert New Design to add another column to check another design.
A17: Tol_L | C17: Opt | D17: 0.2 | E17: 0.2 | F17: 0.2 | H17: To delete a design that is no longer needed, right click on the column letter then select delete.
A18: Rtrip | B18: kΩ | C18: Opt | D18: Rtrip_NSV | E18: 4.99 | F18: 44.2
A19: Io_max_min | B19: A | C19: Calc | E19: 5.615949928 | F19: 0.5769923623 | H19: Pull Values from DeviceCalculator Sheet
A20: N_cer | C20: Opt | D20: 1 | E20: 6 | F20: 2 | H20: The DeviceCalculator worksheet has more details to aid in the design.
A21: Cout_single_cer | B21: µF | C21: Opt | D21: Cout_min | E21: 47 | F21: 10 | H21: Updates to the design can be mode in the DeviceCalculator sheet.
A22: ESR_single_cer | B22: mΩ | C22: Opt | D22: 1 | E22: 5 | F22: 1 | H22: After making updates, click on Pull Values to use the values on the DeviceCalculator sheet and check them.
A23: Cer_derating | C23: Opt | D23: 0.8 | E23: 0.6 | F23: 0.8
A24: N_bulk | C24: Opt | D24: 0 | E24: 0 | F24: 0 | H24: Check/Calculate All Columns
A25: Cout_single_bulk | B25: µF | C25: Opt | D25: 0.1 | E25: 0.1 | F25: 0.1 | H25: This will run Check/Calculate Selected Column on all designs
A26: ESR_single_bulk | B26: mΩ | C26: Opt | D26: 1 | E26: 1 | F26: 1
A27: Vo_undershoot | B27: mV | C27: Calc | E27: 11.12358051 | F27: 12.9221247
A28: Vo_overshoot | B28: mV | C28: Calc | E28: 14.77532639 | F28: 7.101828863
A29: Vo_ripple | B29: mV | C29: Calc | E29: 2.109264192 | F29: 8.58122976
A30: Vi_ripple_percent | C30: Opt | D30: 0.04 | E30: 0.04 | F30: 0.04
A31: Cin_cer | B31: µF | C31: Opt | D31: Cin_min | E31: 20 | F31: 10
A32: Cin_derating | C32: Opt | D32: 0.5 | E32: 0.5 | F32: 0.5
A33: Vi_ripple | B33: mV | C33: Calc | E33: 41.54829545 | F33: 21.87777778
A34: Rfb_b | B34: kΩ | C34: Opt | D34: Rfb_b_rec | E34: 0.499 | F34: 1
A35: Rfb_t | B35: kΩ | C35: Opt | D35: Rfb_t_NSV | E35: 1 | F35: 5.1
A36: Vout_calc | B36: V | C36: Calc | E36: 1.80240481 | F36: 3.66
A37: Cff | B37: pF | C37: Opt | D37: Cff_NSV | E37: 4700 | F37: 680
A38: Rff | B38: kΩ | C38: Opt | D38: Rff_NSV | E38: 0 | F38: 0.26
A39: Css | B39: nF | C39: Opt | D39: 22 | E39: 22 | F39: 22
A40: Tss | B40: ms | C40: Calc | E40: 1.5 | F40: 1.5
A41: Ren_b | B41: kΩ | C41: Opt | D41: 0 | E41: 100 | F41: 10
A42: Ren_t | B42: kΩ | C42: Opt | D42: 0 | E42: 470 | F42: 16.9
A43: Vstart_typ | B43: kΩ | C43: Calc | E43: 7.049566667 | F43: 3.285236333
A44: Vstop_typ | B44: kΩ | C44: Calc | E44: 5.8939 | F44: 2.746673
A45: Cvcc | B45: µF | C45: Opt | D45: Cvcc_rec | E45: 4.7 | F45: 2.2
A46: Cboot | B46: µF | C46: Opt | D46: Cboot_rec | E46: 0.22 | F46: 0.1
A47: Rboot | B47: Ω | C47: Opt | D47: Rboot_rec | E47: 0 | F47: 0
A48: Rpg | B48: kΩ | C48: Opt | D48: Rpg_rec | E48: 3.3 | F48: 10
A49: R_mode_check | C49: Check | E49: Pass | F49: Pass
A50: Lout_check | C50: Check | E50: Pass | F50: Pass
A51: Rtrip_check | C51: Check | E51: Caution: Decrease Rtrip for higher current limit. Current limit may be hit when accounting for inductance and current limit tolerance. Recommended value is 4.64 kOhm. | F51: Caution: Decrease Rtrip for higher current limit. Current limit may be hit when accounting for inductance and current limit tolerance. Recommended value is 22.1 kOhm.
A52: Cout_check | C52: Check | E52: Pass | F52: Pass
A53: Cin_check | C53: Check | E53: Pass | F53: Pass
A54: FB_network_check | C54: Check | E54: Pass | F54: Pass
A55: EN_divider_check | C55: Check | E55: Pass | F55: Pass
A56: Cvcc_Cboot_Rpg_check | C56: Check | E56: Pass | F56: Pass

Sheet DeviceCalculator
B1: Design Calculations | J1: Key
B2: Parameter | C2: Input | D2: Recommended | E2: Selected Value | F2: Calculated with Selected Value | G2: Units | H2: Description | J2: User Entered Value
J3: Fixed IC Parameter
J4: Calculated Parameter
J5: Recommended Component Value
J6: Design Caution
J7: Design Warning
B8: Choose Device
B9: Part Number | C9: TPS54J061 | H9: Select IC part number
B10: Vin_min_bias | C10: =VLOOKUP($C$9,partData!$A$3:$N$10,14,FALSE) -> 2.7 | G10: V | H10: IC rated minimum input voltage with external bias
B11: Vin_min_IC | C11: =VLOOKUP($C$9,partData!$A$3:$N$10,2,FALSE) -> 4 | G11: V | H11: IC rated minimum input voltage with internal bias
B12: Vin_max_IC | C12: =VLOOKUP($C$9,partData!$A$3:$N$10,3,FALSE) -> 16 | G12: V | H12: IC rated maximum input voltage
B13: Vref | C13: =VLOOKUP($C$9,partData!$A$3:$N$10,10,FALSE) -> 0.6 | G13: V | H13: Internal voltage reference
B14: Io_max_IC | C14: =VLOOKUP($C$9,partData!$A$3:$N$10,4,FALSE) -> 6 | G14: A | H14: IC rated maximum output current
B15: Vcc | C15: =VLOOKUP($C$9,partData!$A$3:$N$10,13,FALSE) -> 3 | G15: V | H15: Internal VCC regulator output voltage
B16: Iss | C16: =VLOOKUP($C$9,partData!$A$3:$S$10,19,FALSE) -> 9 | G16: µA | H16: SS/REFIN sourcing current
B17: EN_rise | C17: =VLOOKUP($C$9,partData!$A$3:$U$10,20,FALSE) -> 1.22 | G17: V | H17: EN rising voltage threshold
B18: EN_fall | C18: =VLOOKUP($C$9,partData!$A$3:$U$10,21,FALSE) -> 1.02 | G18: V | H18: EN falling voltage threshold
B19: OCF_response | C19: =VLOOKUP($C$9,partData!$A$3:$N$10,11,FALSE) -> Hiccup | H19: Over current fault response
B20: OVF_response | C20: =VLOOKUP($C$9,partData!$A$3:$N$10,12,FALSE) -> Latch Off | H20: Over voltage fault response | R20: Calculated component values summary
B21: OC_clamp | C21: =VLOOKUP($C$9,partData!$A$3:$N$10,8,FALSE) -> 9.5 | G21: A | H21: Valley current limit maximum clamp | R21: MODE | S21: =D41 -> Connect to VCC | T21: kΩ
B22: Rtrip_gain | C22: =VLOOKUP($C$9,partData!$A$3:$R$10,18,FALSE) -> 30000 | H22: Gain for Rtrip calculation | R22: Lout | S22: =Lout -> 3.3 | T22: µH
B23: Rtrip_min | C23: =VLOOKUP($C$9,partData!$A$3:$Y$10,23,FALSE) -> 3.74 | G23: kΩ | R23: Cout | S23: =Cout -> 2.401 | T23: µF
B24: Rtrip_max | C24: =VLOOKUP($C$9,partData!$A$3:$Y$10,24,FALSE) -> 30.1 | G24: kΩ | R24: Rtrip | S24: =Rtrip -> 22 | T24: kΩ
B25: Ioc_neg_max | C25: =VLOOKUP($C$9,[2]partData!$A$3:$V$10,22,FALSE) -> -2.8 | G25: A | H25: Worst case negative current limit threshold | R25: Cin | S25: =Cin_cer -> 10 | T25: µF
B26: ton_min | C26: =VLOOKUP($C$9,partData!$A$3:$P$10,9,FALSE) -> 70 | G26: ns | H26: Typical minimum on-time | R26: Rfb_b | S26: =Rfb_b -> 1 | T26: kΩ
B27: toff_min_max | C27: =VLOOKUP($C$9,partData!$A$3:$P$10,15,FALSE) -> 220 | G27: ns | H27: Worst case minimum off-time | R27: Rfb_b | S27: =Rfb_b -> 1 | T27: kΩ
B28: Rdson_HS | C28: =VLOOKUP($C$9,partData!$A$3:$Q$10,16,FALSE) -> 25 | G28: mΩ | H28: High-side FET Rdson | R28: Rfb_t | S28: =Rfb_t -> 5.05 | T28: kΩ
B29: Rdson_LS | C29: =VLOOKUP($C$9,partData!$A$3:$Q$10,17,FALSE) -> 9.2 | G29: mΩ | H29: Low-side FET Rdson | R29: Cff | S29: =Cff -> 680 | T29: pF
B30: Input System Parameters | R30: Css | S30: =Css -> 22 | T30: nF
B31: Vin_min | C31: 9 | G31: V | H31: Minimum input voltage | R31: Ren_t | S31: =Ren_t -> 16.9 | T31: kΩ
B32: Vin_nom | C32: 12 | G32: V | H32: Nominal input voltage | R32: Ren_b | S32: =Ren_b -> 10 | T32: kΩ
B33: Vin_max | C33: 15 | G33: V | H33: Maximum input voltage | R33: Cvcc | S33: =MAX(1,Cvcc) -> 2.2 | T33: µF
B34: Vout | C34: 3.63 | G34: V | H34: Output voltage | R34: Cboot | S34: =MAX(0.1,Cboot) -> 0.1 | T34: µF
B35: Iout | C35: 1 | G35: A | H35: Maximum output current | R35: Rpg | S35: =Rpg -> 10 | T35: kΩ
B36: Select the Switching Frequency and Light Load operation mode (MODE pin)
B37: fsw_input | C37: 1100 | G37: kHz | H37: Input desired fsw option
B38: LL_mode_input | C38: DCM | H38: Input desired light load operation mode
B39: fsw_max_ton | D39: =Vout/Vin_max*1/(ton_min_sec)*0.001 -> 3457.142857 | G39: kHz | H39: Maximum fsw limited by Vin_max and minimum on-time
B40: fsw_max_toff | D40: =(Vin_min-Vout-Iout*2*(DCR_Ohm+Rdson_HS_Ohm))/(toff_min_max_sec*(Vin_min-Iout*2*(Rdson_HS_Ohm-Rdson_LS_Ohm)))*10^-3 -> 2670.082025 | G40: kHz | H40: Maximum fsw allowed limited by Vin_min and minimum off-time (Depends on inductor DCR and includes 2x multiplier on resistance for margin)
B41: R_mode_rec | D41: =VLOOKUP(CONCATENATE(C37,C38),partData!E15:H20,4,0) -> Connect to VCC | G41: kΩ | H41: MODE pin connection or resistor to AGND with input values
B42: R_mode | E42: Connect to VCC | G42: kΩ | H42: Selected MODE pin connection or resistor to AGND
B43: fsw_select | F43: =VLOOKUP(R_mode,partData!H15:J20,2,0) -> 1100 | G43: kHz | H43: fsw with selected MODE configuration
B44: LL_mode_select | F44: =VLOOKUP(R_mode,partData!H15:J20,3,0) -> DCM | H44: Light load operation mode with selected MODE configuration
B45: Choose the Output Inductor (Lout)
B46: The inductance is selected based on a p-p ripple current target. Smaller L reduces solution size while larger L reduces AC loss. | J46: NOTE: The TPS54J060 and TPS54J061 do not have a VSNS- pin. For these IC's, the the FB divider and SS capacitor must be returned to the AGND pin.
B47: Kind | C47: 0.2 | H47: Target ripple/Iout ratio (typically between 0.2 to 0.4)
B48: L_target | D48: =((Vin_max-Vout)*Vout)/(Iout*Kind*Vin_max*fsw_select)*1000 -> 12.507 | G48: µH | H48: Target inductor value
B49: L_min | D49: =((Vin_max-Vout)*Vout)/(Io_max_IC*0.5*Vin_max*fsw_select)*1000 -> 0.8338 | G49: µH | H49: Minimum recommended inductance (ripple = 50% Iout_max_IC)
B50: L_max | D50: =((Vin_max-Vout)*Vout)/(Io_max_IC*0.1*Vin_max*fsw_select)*1000 -> 4.169 | G50: µH | H50: Maximum recommended inductance (ripple = 10% Iout_max_IC)
B51: L_rec | D51: =MIN(MAX(D49,D48),D50) -> 4.169 | G51: µH | H51: Recommended inductance value
B52: Lout | E52: 3.3 | G52: µH | H52: Selected inductance
B53: DCR | E53: 25.9 | G53: mΩ | H53: DC resistance of selected inductor
B54: Tol_L | E54: 0.2 | H54: Tolerance of inductance for selected inductor
B55: Iripple_max | F55: =1000*((Vin_max-Vout)*Vout)/(Lout*(1-Tol_L)*Vin_max*fsw_select) -> 0.9475 | G55: A | H55: Inductor ripple current at Vin_max (Includes Tol_L. Used for DC ripple calculations. If red, risk of hitting negative OC)
B56: Ipeak | F56: =Iout+(Iripple_max/2) -> 1.47375 | G56: A | H56: Full load peak current at Vin_max
B57: Irms | F57: =SQRT(Iout^2+(Iripple_max^2)/12) -> 1.036731894 | G57: A | H57: Inductor rms current at Vin_max
B58: Iripple_min | F58: =1000*((Vin_min-Vout)*Vout)/(Lout*(1+Tol_L)*Vin_min*fsw_select) -> 0.4972222222 | H58: Inductor ripple current at Vin_min (includes Tol_L)
B59: Ivalley | F59: =Iout-(Iripple_min/2) -> 0.7513888889 | G59: A | H59: Full load valley current at Vin_min (used for I_lim calculations)
B60: Set current limit (Rtrip)
B61: Tol_Ilim | C61: 0.15 | H61: Ilim tolerance
B62: I_limval_rec | D62: =MIN(Ivalley*1/(1-Tol_Ilim),OC_clamp) -> 0.8839869281 | G62: A | H62: Recommended valley current limit setting (Includes margin for Tol_L and Ilim tolerance)
B63: I_lim_target | C63: =Ivalley -> 0.7513888889 | G63: A | H63: Input target valley current limit setting
B64: Rtrip_calc | D64: =VLOOKUP($C$9,partData!$A$3:$AAB$10,25,FALSE) -> 22.5243964 | G64: kΩ | H64: Calculated Rtrip. This calculation includes the tolerance of the current limit.
B65: Rtrip_NSV | D65: =partData!W18 -> 22.1 | G65: kΩ | H65: Round down to nearest E96 standard value
B66: Rtrip | E66: 22 | G66: kΩ | H66: Selected Rtrip
B67: I_lim_typ | F67: =MIN(Rtrip_gain/(Rtrip*1000),OC_clamp) -> 1.363636364 | G67: A | H67: Estimated typical valley current limit with selected Rtrip
B68: Io_max_min | F68: =VLOOKUP($C$9,partData!$A$3:$AAB$10,26,FALSE)+Iripple_min/2 -> 1.036273008 | G68: A | H68: Estimated minimum Iout at current limit
B69: Io_max_typ | F69: =I_lim_typ+1/2*(Vin_nom-Vout)*Vout/(Lout_H*Vin_nom*fsw_Hz) -> 1.712386364 | G69: A | H69: Estimated typical Iout at current limit
B70: Io_max_max | F70: =I_lim_typ*(1+Tol_Ilim)+Iripple_max/2 -> 2.041931818 | G70: A | H70: Estimated maximum Iout at current limit
B71: Choose the Output Capacitor (Cout)
B72: The output capacitance is deteremind based on the output ripple, transient and stability requirements.
B73: Io_step | C73: 0.5 | G73: A | H73: Iout load transient step
B74: dVo_trans_perc | C74: 0.03 | H74: Target Vout overshoot/undershoot after load step as a percentage of Vout
B75: dVo_ripple_perc | C75: 0.01 | H75: Target steady state Vout voltage ripple as a percentage of Vout
B76: dVo_trans | D76: =dVo_trans_perc*Vout -> 0.1089 | G76: V | H76: Target Vout overshoot/undershoot after load step
B77: dVo_ripple | D77: =dVo_ripple_perc*Vout -> 0.0363 | G77: V | H77: Target steady state Vout voltage ripple
B78: Cout_ripple | D78: =Iripple_max/(8*dVo_ripple*fsw_Hz)*10^6 -> 2.966128224 | G78: µF | H78: Min Cout for DC ripple requirement (ignores ESR)
B79: Cout_undershoot | D79: =((Lout*Io_step^2)*(Vout/(Vin_min*fsw_Hz)+toff_min_max_sec))/(2*dVo_trans*Vout*((Vin_min-Vout)/(Vin_min*fsw_Hz)-toff_min_max_sec)) -> 1.898686109 | G79: µF | H79: Min Cout for undershoot requirement
B80: Cout_overshoot | D80: =Lout*Io_step^2/(2*Vout*dVo_trans) -> 1.043492779 | G80: µF | H80: Min Cout for overshoot requirement
B81: Cout_stability | D81: =(15/(PI()*fsw_Hz))^2*1/Lout_H*1000000 -> 5.709307869 | G81: µF | H81: Min Cout for stability (f_LC < fsw/30)
B82: Cout_min | D82: =(MAX(D78:D81)) -> 5.709307869 | G82: µF | H82: Recommended min Cout (must include any derating due to DC/AC bias, temp and/or tolerance)
B83: Cout_max | D83: =2500/(PI()^2*fsw_Hz^2*Lout_H)*1000000 -> 63.4367541 | G83: µF | H83: Max Cout for stability (f_LC > fsw/100) (Exceeding this may be ok but further validation is required)
B84: ESR_trans | D84: =dVo_trans/Io_step*1000 -> 217.8 | G84: mΩ | H84: Max effective ESR to meet load step transient requirement
B85: ESR_ripple | D85: =dVo_ripple/Iripple_max*1000 -> 38.31134565 | G85: mΩ | H85: Max effective ESR to meet ripple requirement
B86: ESR_max | D86: =MIN(D84:D85) -> 38.31134565 | G86: mΩ | H86: Recommanded max effective ESR (when using mixed type output capacitors, it may be possible for bulk capacitance to have higher ESR)
B87: Cout_single_cer | E87: 3 | G87: µF | H87: Nominal value of a Single Ceramic Output Capacitor
B88: Cer_derating | E88: 0.8 | H88: Percentage of Nominal Ceramic Capacitance remaining after Tolerance, Thermal, and DC Bias derating
B89: ESR_single_cer | E89: 1 | G89: mΩ | H89: Single Ceramic Capacitor ESR
B90: N_cer | E90: 1 | H90: Number of Ceramic Capacitors
B91: Cout_cer | F91: =IF(N_cer=0,0.001,N_cer*E87*Cer_derating) -> 2.4 | G91: uF | H91: Total Ceramic Output Capacitance
B92: ESR_cer | F92: =IF(N_cer=0,0,E89/N_cer) -> 1 | G92: mΩ | H92: Effective Ceramic Capacitance ESR
B93: Cout_single_bulk | E93: 0.1 | G93: uF | H93: Nominal value of a Single Bulk/Polymer/Electrolytic Output Capacitor
B94: Bulk_derating | E94: 1 | H94: Percentage of Nominal Bulk Capacitance remaining after Tolerance, Thermal, and DC Bias derating
B95: ESR_single_bulk | E95: 1 | G95: mΩ | H95: Single Bulk Capacitor ESR
B96: N_bulk | E96: 0 | H96: Number of Bulk Capacitors
B97: Cout_bulk | F97: =IF(N_bulk=0,0.001,N_bulk*E93*Bulk_derating) -> 0.001 | G97: µF | H97: Total Bulk Output Capacitance
B98: ESR_bulk | F98: =IF(N_bulk=0,10^9,E95/N_bulk) -> 1000000000 | G98: mΩ | H98: Effective Bulk Capacitance ESR
B99: Cout | F99: =Cout_bulk+Cout_cer -> 2.401 | G99: uF | H99: Total Bulk + Ceramic Output Capacitance
B100: Vo_undershoot | F100: =(Lout_H*Io_step^2)*(Vout/(Vin_min*fsw_Hz)+toff_min_max_sec)/(2*Cout_F*Vout*((Vin_min-Vout)/(Vin_min*fsw_Hz)-toff_min_max_sec))*10^3 -> 86.11700012 | G100: mV | H100: Estimated undershoot (ignores ESR and ESL)
B101: Vo_overshoot | F101: =(Lout_H*Io_step^2/(2*Vout*Cout_F))*10^3 -> 47.32876453 | G101: mV | H101: Estimated overshoot (ignores ESR and ESL)
B102: Zout_fsw | F102: =1/(1/(SQRT((ESR_bulk*10^-3)^2+1/(2*PI()*fsw_select*10^3*Cout_bulk*10^-6)^2))+1/(SQRT((ESR_cer*10^-3)^2+1/(2*PI()*fsw_select*10^3*Cout_cer*10^-6)^2)))*1000 -> 60.29425289 | G102: mΩ | H102: Output Impedance at Swiching Frequency
B103: Vo_ripple | F103: =Iripple_max*Zout_fsw -> 57.12880461 | G103: mV | H103: Estimated capacitive + resistive DC ripple (ignores ESL)
B104: Stability | F104: =IF(Stability>2,"GOOD","BAD") -> GOOD | H104: If BAD, increase Cout, increase L and/or use lower ESR capacitors
B105: f_LC | F105: =1/(2*PI()*SQRT(Lout_H*Cout_F))*0.001 -> 56.54146822 | G105: kHz | H105: LC resonant frequency (if yellow, feedforward cap recommended)
B106: f_ESR_cer | F106: =1/(2*PI()*Cout_cer*10^-6*ESR_cer*10^-3)*10^-3 -> 66314.55962 | G106: kHz | H106: Ceramic capacitor ESR zero frequency (if yellow, ESR zero may affect loop stability)
B107: f_ESR_bulk | F107: =IF(N_bulk=0,"N/A",1/(2*PI()*Cout_bulk*10^-6*ESR_bulk*10^-3)*10^-3) -> N/A | G107: kHz | H107: Bulk capacitor ESR zero frequency (if yellow, ESR zero may affect loop stability)
B108: Choose the Input Capacitor (Cin)
B109: The input capacitance is deteremind based on the input ripple requirements. Additional bulk input capacitance may be needed for transients. 0.1µF high frequency bypass capacitors are also required.
B110: Vi_ripple_percent | C110: 0.04 | H110: Target DC input ripple voltage percentage
B111: Vi_ripple_target | D111: =Vin_min*C110*1000 -> 360 | G111: mV | H111: Target DC input voltage ripple (Vi_ripple_percent of min Vin)
B112: Q_input | D112: =(Iout*(1-Vout/Vin_min)*Vout)/(fsw_Hz*Vin_min)*10^6 -> 0.2187777778 | G112: µC | H112: Charge per switching cycle (Vin_min)
B113: Cin_min | D113: =MAX(Q_input/Vi_ripple_target*10^3,10) -> 10 | G113: µF | H113: Minimum input capacitance required
B114: Cin_cer | E114: 10 | G114: µF | H114: Selected total input ceramic capacitance
B115: Cin_derating | E115: 0.5 | H115: Percentage of Nominal Ceramic Capacitance remaining after Tolerance, Thermal, and DC Bias derating
B116: Cin_eff | F116: =Cin_cer*Cin_derating -> 5 | G116: µF | H116: Effective total input ceramic capacitance
B117: Vi_ripple | F117: =D112*1000/E114 -> 21.87777778 | G117: mV | H117: Input DC ripple
B118: Iin_rms | F118: =(Vout/Vin_min*((1-Vout/Vin_min)*Iout^2+ (Iripple_min^2)/12))^0.5 -> 0.4989641555 | G118: A | H118: Input RMS current
B119: Determine feedback network values (FB resistor divider and Cff)
B120: Rfb_b_rec | D120: 2.61 | G120: kΩ | H120: Bottom feedback resistor (499-20k recommended)
B121: Rfb_b | E121: 1 | G121: kΩ | H121: Selected bottom feedback resistor
B122: Rfb_t_target | D122: =Rfb_b*(Vout/Vref-1) -> 5.05 | G122: kΩ | H122: Calculated top resistor
B123: Rfb_t_NSV | D123: =partData!U16 -> 4.99 | G123: kΩ | H123: Nearest Standard Value 1%
B124: Rfb_t | E124: 5.05 | G124: kΩ | H124: Selected top resistor
B125: Vout_calc | F125: =Vref*(1+Rfb_t/Rfb_b) -> 3.63 | G125: V | H125: Calculated Vout (yellow if not within 1% of target Vout)
B126: FF_cap? | D126: =IF(OR(Vout>1.8,f_LC<fsw_select/60),"YES","NO") -> YES | H126: Feedforward cap recommended? (if f_LC < fsw/60 OR Vout > 1.8)
B127: fz_cff_div_f_LC | D127: =IF(Vout<1.8,3,-0.625*Vout+4.125) -> 1.85625 | H127: Recommended location of fz_cff relative to f_LC (if Vout <1.8 then 3, if Vout = 5 then 1)
B128: Cff_calc | D128: =1/(2*PI()*(fz_cff_div_f_LC*f_LC)*Rfb_t)*1000000 -> 300.2791689 | G128: pF | H128: Recommended feedforward cap value
B129: Cff_NSV | D129: =IF(Cff_calc<10000,VLOOKUP((10^(LOG(Cff_calc)-INT(LOG(Cff_calc)))),c_s1:C_f1,1),VLOOKUP((10^(LOG(Cff_calc)-INT(LOG(Cff_calc)))),C_s2:C_f2,1))*10^INT(LOG(Cff_calc)) -> 270 | G129: pF | H129: Nearest Standard Value
B130: Cff | E130: 680 | G130: pF | H130: Selected feedforward cap value
B131: Rff_rec | D131: =Rfb_t/20 -> 0.2525 | G131: kΩ | H131: Recommended feedforward resistor
B132: Rff_NSV | D132: =(IF((10^(LOG(D131)-INT(LOG(D131)))*100)-VLOOKUP((10^(LOG(D131)-INT(LOG(D131)))*100),E96_s:E96_f,1)<VLOOKUP((10^(LOG(D131)-INT(LOG(D131)))*100),E96_s:E96_f,2)-(10^(LOG(D131)-INT(LOG(D131)))*100),VLOOKUP((10^(LOG(D131)-INT(LOG(D131)))*100),E96_s:E96_f,1),VLOOKUP((10^(LOG(D131)-INT(LOG(D131)))*100),E96_s:E96_f,2)))*10^INT(LOG(D131))/100 -> 0.255 | G132: kΩ | H132: Rff nearest E96 standard value
B133: Rff | E133: 0.26 | G133: kΩ | H133: Selected feedforward resistor value
B134: fz_cff | F134: =IF(Cff<>0,1/(2*PI()*Cff*0.000000001*(Rfb_t+Rff)*1000),"N/A") -> 44.07747399 | G134: kHz | H134: Frequency of zero added by the feedforward cap
B135: Soft-start capacitor (SS/REFIN)
B136: Tss_target | C136: 5 | G136: ms | H136: Target soft-start time (minimum is 1.5 ms)
B137: C_ss_calc | D137: =MAX(1,Iss*Tss_target/Vref) -> 75 | G137: nF | H137: Calculated SS capacitor
B138: Css | E138: 22 | G138: nF | H138: Selected SS capacitor
B139: Tss | F139: =MAX(1.5,Css*Vref/Iss) -> 1.5 | G139: ms | H139: SS time with selected SS capacitor (0 to 100%)
B140: EN pin resistor divider
B141: Vstart_target | C141: 3.3 | G141: V | H141: Target turn on voltage set by EN resistor divider
B142: Ren_b_rec | D142: 10
B143: Ren_b | E143: 10 | G143: kΩ | H143: Selected bottom resistor (1k-100k recommended)
B144: Ren_b_eff | F144: =Ren_b*6000/(Ren_b+6000) -> 9.983361065 | G144: kΩ | H144: Effective bottom resistance including 6-MΩ internal pull-down resistance on EN pin
B145: Ren_t_calc | D145: =Ren_b_eff*Vstart_target/EN_rise-Ren_b_eff -> 17.02081231 | G145: kΩ | H145: Calculated top resistor
B146: Ren_t_NSV | D146: =partData!U17 -> 16.9 | G146: kΩ | H146: Nearest Standard Value 1%
B147: Ren_t | E147: 16.9 | G147: kΩ | H147: Selected top resistor
B148: Vstart_typ | F148: =IF(OR(Ren_b=0,Ren_t=0),"N/A",EN_rise*(Ren_b_eff+Ren_t)/Ren_b_eff) -> 3.285236333 | G148: V | H148: Estimated typical turn on voltage with selected resistors (Red if below Vin_min, Yellow if near Vin_min)
B149: Vstop_typ | F149: =IF(OR(Ren_b=0,Ren_t=0),"N/A",EN_fall*(Ren_b_eff+Ren_t)/Ren_b_eff) -> 2.746673 | G149: V | H149: Estimated typical turn off voltage with selected resistors
B150: Ven_max | F150: =IF(OR(Ren_b=0,Ren_t=0),"N/A",Vin_max*Ren_b_eff/(Ren_t+Ren_b_eff)) -> 5.570375505 | G150: V | H150: Estimated maximum voltage at EN pin at max input voltage (Red if >6V)
B151: Operating Input Voltage Range
B152: fsw_select | F152: =fsw_select -> 1100 | G152: kHz | H152: Chosen switching frequency
B153: Minimum Vin | F153: =IF(2*Iout*(Rdson_HS_Ohm-Rdson_LS_Ohm)-(Vout+2*Iout*(DCR_Ohm+Rdson_LS_Ohm))/(fsw_Hz*toff_min_max_sec-1)<Vin_min_IC,Vin_min_IC,2*Iout*(Rdson_HS_Ohm-Rdson_LS_Ohm)-(Vout+2*Iout*(DCR_Ohm+Rdson_LS_Ohm))/(fsw_Hz*toff_min_max_sec-1)) -> 4.913130343 | G153: V | H153: Minimum input voltage allowed for proper function, based on fsw and minimum off time
B154: Maximum Vin | F154: =IF(Vout/fsw_Hz*1/(ton_min_sec)*0.95>Vin_max_IC,Vin_max_IC,Vout/fsw_Hz*1/(ton_min_sec)*0.95) -> 16 | G154: V | H154: Maximum input voltage allowed for proper function, based on fsw and minimum on time
B155: VCC bypass capacitor, BOOT bypass capacitor, PGOOD resistor
B156: Cvcc_rec | D156: 2.2 | G156: µF | H156: At least 1 µF required
B157: Cvcc | E157: 2.2 | G157: µF | H157: Selected Cvcc
B158: Cboot_rec | D158: 0.1 | G158: µF | H158: At least 0.1µF required
B159: Cboot | E159: 0.1 | G159: µF | H159: Selected Cboot
B160: Rboot_rec | D160: =IF(AND(C33="TPS543820",Vin_max>13.5),2.2,0) -> 0 | G160: µF | H160: 0-Ω series BOOT resistor placeholder recommended in case SW voltage overshoot needs to be reduced.
B161: Rboot | E161: 0 | G161: µF | H161: Selected Rboot.
B162: Rpg_rec | D162: 10 | G162: kΩ | H162: 1k-100k recommended
B163: Rpg | E163: 10 | G163: kΩ | H163: Selected Rpg

Sheet Sheet1 (hidden)
A1: 1 | B1: 2
A2: Part # | B2: Kramp
A3: =partData!A3 -> TPS548A28 | B3: =300000*(0.000000000005+IF(OR(fsw_select=partData!E3,fsw_select=partData!F3),0.00000000000125,0)) -> 1.5e-06
A4: =partData!A4 -> TPS548A29 | B4: =300000*(0.000000000005+IF(OR(fsw_select=partData!E4,fsw_select=partData!F4),0.00000000000125,0)) -> 1.5e-06
A5: =partData!A5 -> TPS548B27 | B5: =300000*(0.000000000005+IF(OR(fsw_select=partData!E5,fsw_select=partData!F5),0.00000000000125,0)) -> 1.5e-06
A6: =partData!A6 -> TPS548B28 | B6: =300000*(0.000000000005+IF(OR(fsw_select=partData!E6,fsw_select=partData!F6),0.00000000000125,0)) -> 1.5e-06
A7: =partData!A7 -> TPS54J060 | B7: =650000*(0.000000000001125+IF(OR(fsw_select=partData!E7,fsw_select=partData!G7),0.00000000000338,0)+IF(fsw_select=partData!G7,0.000000000001745,0)) -> 2.92825e-06
A8: =partData!A8 -> TPS54J061 | B8: =B7 -> 2.92825e-06
A9: =partData!A9 -> TPS54JA20 | B9: =300000*(0.000000000005+IF(OR(fsw_select=partData!E9,fsw_select=partData!F9),0.00000000000125,0)) -> 1.5e-06
A10: =partData!A10 -> TPS54JB20 | B10: =300000*(0.000000000005+IF(OR(fsw_select=partData!E10,fsw_select=partData!F10),0.00000000000125,0)) -> 1.5e-06
A12: Selected device | B12: =DeviceCalculator!C9 -> TPS54J061
A13: fsw_select | B13: =fsw_select -> 1100
A14: Kramp | B14: =VLOOKUP(B12,A3:B10,2,FALSE) -> 2.92825e-06
A15: Stability_zout | B15: =Lout_H*Vout/(40*K*Vref*Zout_fsw*10^-3) -> 2.826996385
A16: Stability_old | B16: =(Cout_F*Lout_H*(1-Tol_L)*Vout*fsw_Hz)/(5*K*Vref*SQRT(64*Cout_F^2*ESR_Ohm^2*fsw_Hz^2+1)) -> 
A18: dVramp_nom | B18: =(Vin_nom/5-Vout/5)/K*Vout/Vin_nom*1/fsw_Hz*0.125 -> 0.01965124221

Sheet 6A_SchematicChecklist
A1: Pin | B1: Name | C1: Purpose | D1: Connection For Functional Use | E1: Reasoning | F1: Recommended Component Values from Design Calculations | G1: Status | H1: Comments
A2: Control
A3: 6 | B3: FB divider | C3: Output feedback input | D3: Ensure that the feedback divider network gives the appropriate Vout based on the Vref chosen. The FB pin must be connected to the AGND pin. | F3: =CONCATENATE("Rfb_t = ",ROUND(DeviceCalculator!D122,3)," kΩ"," Rfb_b = ",ROUND(Rfb_b,3)," kΩ") -> Rfb_t = 5.05 kΩ Rfb_b = 1 kΩ | G3: Open
A4: 6 | B4: FB Cff | C4: Output feedback input | D4: Add a capacitor in parallel with the top feedback resistor | E4: Improves transient response and may be required for sufficient phase margin or minimizing output ripple | F4: =CONCATENATE("Cff = ",ROUND(DeviceCalculator!D128,0)," pF") -> Cff = 300 pF | G4: Open
A5: 6 | B5: FB Rff | C5: Output feedback input | D5: Add a resistor in series with the Cff capacitor | E5: In some applications, noise on FB can cause charge to accumulate on Cff resulting in the output starting to droop at high loads. Adding a small series resistance prevents the charge from accumulating. | F5: =CONCATENATE("Rff = ",ROUND(Rff_NSV*1000,0)," Ω") -> Rff = 255 Ω | G5: Open
A7: Configuration
A8: 12 | B8: MODE | C8: fsw and DCM/CCM selection | D8: Connect a resistor from MODE pin to AGND pin. 10% or better tolerance resistor is required. Use Table 1 to select the desired mode. | F8: =CONCATENATE(R_mode," kΩ") -> Connect to VCC kΩ | G8: Open
A9: 12 | B9: MODE fsw setting | C9: fsw selection | D9: Selected fsw should be below the maximum limits calculated in the calculator tab | E9: When exceeding fsw_max_ton, the fsw will decrease but the output will still be regulated. When exceeding fsw_max_toff, the output will become unregulated and UVP may trip. | F9: =CONCATENATE("fsw_max_ton = ",ROUND(DeviceCalculator!D39,0)," kHz"," fsw_max_toff = ",ROUND(DeviceCalculator!D40,0)," kHz") -> fsw_max_ton = 3457 kHz fsw_max_toff = 2670 kHz | G9: Open
A10: 4 | B10: TRIP | C10: OCL detection threshold setting pin | D10: Connect the resistor from the TRIP pin to the AGND pin. Use WEBENCH or calculator to calculate the RTRIP resistor value. Recommend 1% or better resistors for RTRIP. | F10: =CONCATENATE("Valley ILIM = ",ROUND(I_lim_target,2)," A ","RTRIP = ",ROUND(Rtrip,2)," kΩ") -> Valley ILIM = 0.75 A RTRIP = 22 kΩ | G10: Open
A11: 8 | B11: SS/REFIN | C11: Soft-start time | D11: Connecting a capacitor from this pin to AGND pin programs soft-start time. Minimum soft-start time (1.5 ms) is fixed internally. A minimum 1-nF capacitor is required. | F11: =CONCATENATE("CSSREFIN = ",ROUND(DeviceCalculator!D137,0)," nF") -> CSSREFIN = 75 nF | G11: Open
A12: 9 | B12: PGOOD | C12: Open drain power good flag | D12: Connect a 1k-100k resistor to pull-up this pin. Recommend pulling up to VCC but not required. | E12: PGOOD pin is an open-drain output so a pull-up is required when used | G12: Open
A13: 5 | B13: EN | C13: Enable pin | D13: Floating this pin is not recommended. To start switching, this pin must be pulled high. The recommended max voltage rating on the EN pin is 6V. Do not connect EN pin directly to VIN unless the max VIN for your application is below 6V. When using VIN or VDD to drive the EN pin, use a resistor divider and ensure that the voltage stays below 6V. | F13: =CONCATENATE("Ren_t = ",ROUND(DeviceCalculator!D145,3)," kΩ"," Ren_b = ",ROUND(Ren_b,3)," kΩ") -> Ren_t = 17.021 kΩ Ren_b = 10 kΩ | G13: Open
A14: 7 | B14: AGND | C14: Ground reference for control circuits | D14: AGND must be connected to PGND | G14: Open
A16: Power Stage
A17: 3 (VIN), 1, 14 (PGND) | B17: VIN-PGND cap | C17: Conversion power input | D17: A minimum of 10-µF input capacitance is required | E17: The input capacitor Cin should be able to give minimum ripple voltage desired for the application. Use WEBENCH or calculator to calculate the input capacitance. | F17: =CONCATENATE("Cin > ",ROUND(DeviceCalculator!D113,1)," µF") -> Cin > 10 µF | G17: Open
A18: 3 (VIN), 1, 14 (PGND) | B18: VIN-PGND hf cap | C18: Conversion power input | D18: Include a 10nF-100nF 0402 input capacitor | E18: Minimizes high frequency voltage overshoots and undershoots from switching | F18: Cin_hf >= 10 nF | G18: Open
A19: 10 | B19: BOOT cap | C19: Supply input for high-side FET gate driver | D19: Connect at least 100-nF capacitor from the BOOT pin to the SW pin. The BOOT capacitor should be at least 10-V rated, X5R, and 0402 size. | E19: 10-V rating, X5R or better dielectric, and 0402 size or larger ensure stable capacitance across all operating conditions | F19: =CONCATENATE("Cboot >= ",ROUND(DeviceCalculator!D158,2)," µF") -> Cboot >= 0.1 µF | G19: Open
A20: 10 | B20: BOOT resistor | C20: Supply input for high-side FET gate driver | D20: Include a 0-Ω resistor in series with the BOOT capacitor with an 0402 or larger package size. Optional but highly recommended in case of layout related issues. | E20: If the SW pin overshoot is too high, populating a 4.7-Ω resistor in series with the BOOT capacitor minimizes high frequency voltage overshoots on rising edge of SW pin | F20: Rboot = 0 Ω | G20: Open
A21: 2, 11 | B21: SW | C21: Switching node | D21: Connect this pin to the output inductor | G21: Open
A22: 2, 11 | B22: SW snubber | C22: Switching node | D22: Optional RC Snubber from SW to PGND. This component can be not populated. Capacitor: typ 220 pF with 0402 package and 25V rating Resistor: typ near 6.8-Ω with minimum 0603 package | E22: If the SW pin ringing is too high, helps minimize high frequency voltage overshoots and undershoots from switching Capacitor: Minimum 25V rating to support LL voltage Resistor: Minimum 0805 package to support power loss | F22: Csnub = 220 pF Rsnub = 6.8 Ω | G22: Open
A23: N/A | B23: Lout | C23: Output inductor | D23: Use the recommended inductance in WEBENCH or calculator to meet design requirements | F23: =CONCATENATE(ROUND(DeviceCalculator!D49,2)," < Lout < ",ROUND(DeviceCalculator!D50,2)," µH") -> 0.83 < Lout < 4.17 µH | G23: Open
A24: N/A | B24: Cout | C24: Output capacitors | D24: Use the recommended capacitance in WEBENCH or calculator to meet ripple and transient requirements | E24: The maximum Cout is a recommendation only. Exceeding this may be acceptable but the stability should be evaluated by measuring the load step response or bode plot. | F24: =CONCATENATE(ROUND(DeviceCalculator!D82,1)," < Cout < ",ROUND(DeviceCalculator!D83,1)," µF") -> 5.7 < Cout < 63.4 µF | G24: Open
A25: 13 | B25: VCC | C25: Internal 3-V LDO output | D25: Require at least 1-µF, 6.3-V rating ceramic capacitor from VCC pin to PGND pins as the bypass capacitor. 2.2-µF recommended. | E25: Minimum capacitance required for stability of the internal regulator. | F25: Cvcc >= 1 µF | G25: Open
A26: 13 | B26: VCC | C26: Internal 3-V LDO output | D26: An external bias with 3.3-V can be connected to this pin to save the power losses on the internal LDO | G26: Open

Sheet 6A_LayoutChecklist
A1: Pin | B1: Name | C1: Purpose | D1: Placement or Routing? | E1: Remarks | F1: Status | G1: Comments
A2: Power Stage
A3: 3 (VIN), 1, 14 (PGND) | B3: VIN-PGND caps | C3: Conversion power input | D3: Placement | E3: A 0402 sized 0.01-μF to 0.1-μF bypass capacitor must be placed as close as possible to the VIN and PGND pins to bypass high frequency noise and help reduce switch node ringing. It must be placed on the same side of the PCB as the IC. Larger VIN bypass capacitors should also be placed as close as possible to VIN and PGND pins behind this capacitor to minimize the input AC-current loop. | F3: Open
A4: 13 | B4: VCC cap | C4: Internal 3-V LDO output | D4: Placement | E4: Place the VCC bypass capacitor as close as possible to the IC on the same side of the PCB. If multiple capacitors are used, provide PGND vias for each capacitor and ensure the return path is as short as possible. | F4: Open
A5: 1, 14 | B5: PGND | D5: Routing | E5: Include a large PGND pour connected to the PGND pins of the IC and include as many vias as possible for best thermal performance. | F5: Open
A6: N/A | B6: Cout and Lout | C6: Output filter inductor and capacitors | D6: Placement and Routing | E6: Highly recommended to place output and inductor on the same side of the PCB as the IC to minimize PCB parasitic impedance. If components must be placed on the other side of the PCB due to space constraints, ensure multiple vias are used to minimize the added PCB parasitic impedance. | F6: Open
A7: 10 | B7: BOOT cap and resistor | C7: Supply input for high-side FET gate driver | D7: Placement | E7: Place the BOOT resistor (if used) as close as possible to the pin, followed by the BOOT capacitor. | F7: Open
A8: 2, 11 | B8: SW | C8: Switching node | D8: Routing | E8: The PCB trace which connects the SW pins and high-voltage side of the inductor, should be as short and wide as possible to minimize PCB resistance and radiated noise. | F8: Open
A9: 2, 11 | B9: SW snubber | C9: Switching node | D9: Placement and Routing | E9: If used, keep the snubber path short for low inductance and the best possible performance. Also, to minimize inductance, avoid using vias for the RC snubber routing anduse very wide traces. To be most effective, the RC snubber should be connected between a large SW and PGND copper pour on the same side of the PCB as the IC. | F9: Open
A11: Control and Configuration
A12: 7 | B12: AGND | C12: Ground reference for control circuits | D12: Routing | E12: Create a quite AGND island for the return of noise sensitive pins. Connect AGND to PGND at a single point. For example, use vias to connect to an internal ground plane. | F12: Open
A13: 4, 6, 8 | B13: TRIP, FB, SS/REFIN | C13: Current limit, Output feedback input, and soft-start timing | D13: Placement | E13: Place the components connected to TRIP, FB and SS/REFIN as close as possible to the IC to minimize the length of trace connected to them. These components must also be returned to quite area of AGND. | F13: Open
A14: 6 | B14: FB | C14: Output feedback input | D14: Routing | E14: Connect the FB divider to the output voltage near the desired point of regulation. Avoid routing near noisy signals or power planes. | F14: Open
A15: 12 | B15: MODE | C15: Light load mode and fsw selection | D15: Routing | E15: The MODE pin resistor must be returned to the quiet AGND to ensure accurate pin detection. | F15: Open
A16: 9 | B16: PGOOD | C16: Open drain power good | D16: Placement and Routing | E16: Keep the PGOOD pull-up resistor and traces away from fast switching voltage and current paths. | F16: Open
A17: 8 | B17: EN | C17: Enable pin | D17: Placement and Routing | E17: All components and routing for the EN pin should be placed away from any high voltage switch node (itself and others), such as SW and BOOT to avoid noise coupling.

Sheet 12Ato20A_SchematicChecklist
A1: Pin | B1: Name | C1: Purpose | D1: Connection For Functional Use | E1: Reasoning | F1: Recommended Component Values from Calculator | G1: Component units | H1: Status
A2: Sensing and Control
A3: 7 | B3: FB | C3: Output voltage feedback input. | D3: A resistor divider from the VOUT to VSNS– (tapped to FB pin) sets the output voltage. Regardless of remote sensing or single-end sensing connection, FB voltage divider, RFB_HS and RFB_LS, should be always placed as close as possible to the device. | E3: Recommend between 1k to 20k for the RFB_LS. | H3: Open
A4: 7 | B4: FB Cff, FB divider | C4: Output feedback input | D4: The RC time constant between RfbTop and Cff should be less than 1.5*Tsw, where Tsw is the switching period. If a larger Cff is required, RfbTop and RfbBottom should be reduced accordingly while still maintaining the desired voltage divider ratio. For example, if Cff is doubled, RfbTop and RfbBottom should both be halved. Typically in general, Cff is not needed for Vout < 2.5 V. It is typically needed for Vout > 2.5V | E4: Larger Cff helps improve transient response, but can put a low frequency zero which can cause instability
A5: 6 | B5: VSNS- | C5: The return connection for a remote voltage sensing configuration | D5: For single-end sensing, connect the higher FB resistor to a high-frequency local bypass capacitor of 0.1- μF or higher, and short VSNS– to AGND with shortest trace. | H5: Open
A6: 6 | B6: VSNS- | C6: The return connection for a remote voltage sensing configuration | D6: For remote sensing, the connections from the FB voltage divider resistors to the remote location should be a pair of PCB traces with at least 12-mil trace width, and should implement Kelvin sensing across a high bypass capacitor of 0.1-μF or higher. The ground connection of the remote sensing signal must be connected to VSNS– pin. The VOUT connection of the remote sensing signal must be connected to the feedback resistor divider with the lower feedback resistor terminated at VSNS– pin. To maintain stable output voltage and minimize the ripple, the pair of remote sensing lines should stay away from any noise sources such as inductor and SW nodes, or high frequency clock lines. And it is recommended to shield the pair of remote sensing lines with ground planes above and below. | H6: Open
A7: 6 | B7: VSNS- | C7: The return connection for a remote voltage sensing configuration | D7: It is also used as ground for the internal reference. Short to AGND for single-end sense configuration | H7: Open
A8: 2 | B8: AGND | C8: Reference point for the internal control circuits. | D8: Use a separate ground symbol for AGND | E8: This is expected to be a clean ground | H8: Open
A10: Configuration
A11: 8 | B11: EN | C11: The enable pin turns the DC/DC switching converter on or off. | D11: Floating EN pin before startup disables the converter. DO NOT connect EN pin to VIN pin directly. | E11: The recommended max voltage on the EN pin is 5.5V. Typical turn on threshold voltage is 1.2 V for the converter. The LDO turns on at 0.7V enable threshold | H11: Open
A12: 4 | B12: MODE | C12: The MODE pin sets the forced continuous-conduction mode (FCCM) or Skipmode operation. It also selects the operating frequency | D12: Connect a resistor from MODE pin to AGND pin. ±1% tolerance resistor is recommended. Use Table 1 to select the desired mode | F12: =R_mode -> Connect to VCC | G12: kΩ | H12: Open
A13: 3 | B13: TRIP | C13: Current limit setting pin. | D13: Connect a resistor to AGND to set the current limit trip point. ±1% tolerance resistor is highly recommended. | F13: =DeviceCalculator!D64 -> 22.5243964 | G13: kΩ | H13: Open
A14: 9 | B14: PGOOD | C14: Open-drain power-good status signal | D14: When the FB voltage moves outside the specified limits, PGOOD goes low after 2-µs delay. Enable and UVLO asserts PGOOD low. | E14: Use a 1k to 100k resistor | H14: Open
A15: 5 | B15: SS/REFIN | C15: Dual-function pin. Soft-start function. REFIN function: The device always looks at the voltage on this SS/REFIN pin as the reference for the control loop | D15: Connecting a capacitor to VSNS– pin programs soft-start time. Minimum soft-start time (1.5 ms) is fixed internally. A minimum 1-nF capacitor is required for this pin to avoid overshoot during the charge of soft-start capacitor. | F15: =DeviceCalculator!D137 -> 75 | G15: nF | H15: Open
A16: 5 | B16: SS/REFIN | C16: Dual-function pin. Soft-start function. REFIN function: The device always looks at the voltage on this SS/REFIN pin as the reference for the control loop | D16: The SS/REFIN capacitor must use the VSNS– pin for its ground. If an existing design uses both SS/REFIN-to-VSNS- and SS/REFIN-to-AGND capacitors, the SS/REFIN-to-AGND capacitor should be smaller. Noise can be coupled into the SS/REFIN pin and affect stability when SS/REFIN-to-AGND capacitor is too large. Keep SSREFIN to AGND less than 22nF | H16: Open
A17: 5 | B17: SS/REFIN | C17: Dual-function pin. Soft-start function. REFIN function: The device always looks at the voltage on this SS/REFIN pin as the reference for the control loop | D17: This device doesn't require a capacitor from the SS/REFIN pin to AGND and adding one is not recommenced. If the user adds a capacitor from SS/REFIN to AGND, place the capacitor from SS/REFIN to VSNS- closer to the pin with shortest trace to VSNS– pin. | H17: Open
A19: Power Stage
A20: 1 | B20: BOOT | C20: supply rail for the high-side gate driver | D20: Connect the bootstrap capacitor from this pin to SW node. | E20: TI recommends using a 0.1-µF to 1-µF bootstrap capacitor with 10-V rating. It is good practice to use a 0-Ω resistor in series with BOOT capacitor. | H20: Open
A21: 20 | B21: SW | C21: SW is the output switching terminal of the power converter. | D21: Output switching terminal of the power converter. Connect this pin to the output inductor | H21: Open
A22: 10, 21 | B22: VIN | C22: VIN is the conversion power-supply input pins | D22: Place the decoupling input capacitors from VIN pins to PGND pins as close as possible. | E22: VIN decoupling capacitors are important for FET robustness. | H22: Open
A23: 10, 21 | B23: VIN | C23: VIN is the conversion power-supply input pins | D23: 1uF/25V/X6S/0402 ceramic capacitor on VIN pin 21 is required. The PGND vias for this decoupling capacitor should be placed so that the decoupling capacitor is closer to IC than the PGND vias. To lower ESL from via connection, two 8-mil vias are recommended for the PGND connection to inner PGND plane. | H23: Open
A24: 10, 21 | B24: VIN | C24: VIN is the conversion power-supply input pins | D24: A 1uF/25V/X6S/0402 ceramic capacitor on VIN pin 10 is highly recommended. If this 0402 size capacitor is not used, the bigger size VIN decoupling capacitors (0603 or 0805 size) are required to be placed as close as possible to IC pin 10 and pin 11. | H24: Open
A25: 10, 21 | B25: VIN | C25: VIN is the conversion power-supply input pins | D25: Two 1uF/25V/X6S/0402 ceramic capacitors on bottom layer are recommended for high current applications (Iout > 13A). One of these two capacitors should be centered between VIN pin 10 and pin 21. To have good connection for this capacitor, a VIN copper on bottom layer and two VIN vias are needed. The other one can be placed close to IC package just like a mirrored copy to the 0402 capacitor on top layer. | H25: Open
A26: 11, 12, 13, 14, 15, 16, 17, 18 | B26: PGND | C26: These ground pins are connected to the return of the internal low-side MOSFET. | D26: Power ground of internal low-side MOSFET. At least 6 PGND vias are required to be placed as close as possible to the PGND pins. This minimizes parasitic impedance and also lowers thermal resistance | H26: Open
A27: 19 | B27: VCC | C27: Internal 3-V LDO output | D27: Require a 2.2-µF, at least 6.3-V rating ceramic capacitor from VCC pin to PGND pins as the decoupling capacitor and the placement is required to be as close as possible. | H27: Open
A28: 19 | B28: VCC | C28: Internal 3-V LDO output. | D28: An external bias with 3.3-V (TPS54JA20, TPS548A28) 4.5V (TPS548A29) or higher voltage can be connected to this pin to save the power losses on the internal LDO | H28: Open

Sheet 12Ato20A_LayoutChecklist
A1: Pin | B1: Name | C1: Purpose | D1: Placement or Routing? | E1: Remarks | F1: Reasoning | G1: Status | H1: Comments
A2: Sensing and Control
A3: 7 | B3: FB | C3: Output voltage feedback input. | D3: Placement | E3: Place the feedback resistor near the device to minimize the FB trace distance. Avoid routing near noisy signals or power planes. | G3: Open
A4: 6 | B4: VSNS- | C4: The return connection for a remote voltage sensing configuration | E4: The return connection for a remote voltage sensing configuration. It is also used as ground for the internal reference. Short to AGND for single-end sense configuration | G4: Open
A6: Configuration
A7: 8 | B7: EN | C7: enable pin | D7: Routing | E7: All routing for the EN pin should be placed away from any high voltage switch node (itself and others), such as SW and BOOT to avoid noise coupling. The recommended operating condition for EN pin is maximum 5.5-V. DO NOT connect EN pin to VIN pin directly. | G7: Open
A8: 4, 3 | B8: MODE, TRIP | D8: Placement | E8: Place the Mode/Frequency setting resistor (MODE), OCP setting resistor (RTRIP) as close to the device as possible. Use the common GND via to connect them to the GND plane. Route all of these traces away from the switch node and other noisy sig | G8: Open
A9: 9 | B9: PGOOD | C9: open drain power good | D9: Placement | E9: Keep the PGOOD resistor local to the device and place it as close as possible to the PGOOD pin. The resistor should be kept away from fast switching voltage and current paths. | G9: Open
A10: 5 | B10: SS/REFIN | C10: Dual function: External Soft start or external reference input pin | D10: Placement | E10: Soft-start function: Connect a ground of SS capacitor to VSNS– pin. If two capacitors are used on SS pin connect larger value SS cap to VSNS-. Connect smaller value SS cap to AGND. | G10: Open
A12: Power Stage
A13: 1 | B13: BOOT | E13: Place the boot resistor (if used) as close as possible to the pin, followed by the boot capacitor. | G13: Open
A14: 20 | B14: SW | E14: The PCB trace defined as switch node, which connects the SW pins and high-voltage side of the inductor, should be as short and wide as possible. | G14: Open
A15: 10, 21 | B15: VIN | C15: Power Input | E15: To lower ESL from via connection, two 8-mil vias are recommended for the PGND connection to inner PGND plane A 1uF/25V/X6S/0402 ceramic capacitor on VIN pin 10 is highly recommended. If this 0402 size capacitor is not used, the bigger size VIN decoupling capacitors (0603 or 0805 size) are required to be placed as close as possible to IC pin 10 and pin 11. Two 1uF/25V/X6S/0402 ceramic capacitors on bottom layer are recommended for high current applications (Iout > 13A). One of these two capacitors should be centered between VIN pin 10 and pin 21. To have good connection for this capacitor, a VIN copper on bottom layer and two VIN vias are needed. The other one can be placed close to IC package just like a mirrored copy to the 0402 capacitor on top layer. | G15: Open
A16: 11, 12, 13, 14, 15, 16, 17, 18 | B16: PGND | C16: These ground pins are connected to the return of the internal low-side MOSFET. | E16: Have a large solid ground plane for GND | G16: Open
A17: 19 | B17: VCC | E17: Place the VCC decoupling capacitor (2.2uF/6.3V/X6S/0402 or 2.2uF/6.3V/X7R/0603) as close as possible to the device. Ensure the VCC decoupling loop is smallest. | G17: Open

Sheet Std. R and C Values (hidden)
A1: Hide Sheet
E2: Std. Resistors | J2: Capacitors
B3: Enter resistor value | C3: 100 | E3: E6 | G3: E96 | J3: Cap value | K3: 8.2e-08 | L3: pF
E4: 100 | F4: 150 | G4: 100 | H4: 102 | K4: =IF(K3*10^12<10000,IF((10^(LOG(K3*10^12)-INT(LOG(K3*10^12))))-VLOOKUP((10^(LOG(K3*10^12)-INT(LOG(K3*10^12)))),c_s1:C_f1,1)<VLOOKUP((10^(LOG(K3*10^12)-INT(LOG(K3*10^12)))),c_s1:C_f1,2)-(10^(LOG(K3*10^12)-INT(LOG(K3*10^12)))),VLOOKUP((10^(LOG(K3*10^12)-INT(LOG(K3*10^12)))),c_s1:C_f1,1),VLOOKUP((10^(LOG(K3*10^12)-INT(LOG(K3*10^12)))),c_s1:C_f1,2))*10^INT(LOG(K3*10^12)),IF((10^(LOG(K3*10^12)-INT(LOG(K3*10^12))))-VLOOKUP((10^(LOG(K3*10^12)-INT(LOG(K3*10^12)))),C_s2:C_f2,1)<VLOOKUP((10^(LOG(K3*10^12)-INT(LOG(K3*10^12)))),C_s2:C_f2,2)-(10^(LOG(K3*10^12)-INT(LOG(K3*10^12)))),VLOOKUP((10^(LOG(K3*10^12)-INT(LOG(K3*10^12)))),C_s2:C_f2,1),VLOOKUP((10^(LOG(K3*10^12)-INT(LOG(K3*10^12)))),C_s2:C_f2,2))*10^INT(LOG(K3*10^12)))*10^-12 -> 6.8e-08 | L4: pF
B5: Closest E6 Value | C5: =(IF((10^(LOG(C3)-INT(LOG(C3)))*100)-VLOOKUP((10^(LOG(C3)-INT(LOG(C3)))*100),E6_s:E6_f,1)<VLOOKUP((10^(LOG(C3)-INT(LOG(C3)))*100),E6_s:E6_f,2)-(10^(LOG(C3)-INT(LOG(C3)))*100),VLOOKUP((10^(LOG(C3)-INT(LOG(C3)))*100),E6_s:E6_f,1),VLOOKUP((10^(LOG(C3)-INT(LOG(C3)))*100),E6_s:E6_f,2)))*10^INT(LOG(C3))/100 -> 100 | E5: 150 | F5: 220 | G5: 102 | H5: 105
B6: Closest E12 Value | C6: =(IF((10^(LOG(C3)-INT(LOG(C3)))*100)-VLOOKUP((10^(LOG(C3)-INT(LOG(C3)))*100),E12_s:E12_f,1)<VLOOKUP((10^(LOG(C3)-INT(LOG(C3)))*100),E12_s:E12_f,2)-(10^(LOG(C3)-INT(LOG(C3)))*100),VLOOKUP((10^(LOG(C3)-INT(LOG(C3)))*100),E12_s:E12_f,1),VLOOKUP((10^(LOG(C3)-INT(LOG(C3)))*100),E12_s:E12_f,2)))*10^INT(LOG(C3))/100 -> 100 | E6: 220 | F6: 330 | G6: 105 | H6: 107 | J6: C values up to 10nF
B7: Closest E24 Value | C7: =(IF((10^(LOG(C3)-INT(LOG(C3)))*100)-VLOOKUP((10^(LOG(C3)-INT(LOG(C3)))*100),E24_s:E24_f,1)<VLOOKUP((10^(LOG(C3)-INT(LOG(C3)))*100),E24_s:E24_f,2)-(10^(LOG(C3)-INT(LOG(C3)))*100),VLOOKUP((10^(LOG(C3)-INT(LOG(C3)))*100),E24_s:E24_f,1),VLOOKUP((10^(LOG(C3)-INT(LOG(C3)))*100),E24_s:E24_f,2)))*10^INT(LOG(C3))/100 -> 100 | E7: 330 | F7: 470 | G7: 107 | H7: 110 | J7: 1 | K7: 1.2 | L7: =IF((10^(LOG(K3)-INT(LOG(K3))))-VLOOKUP((10^(LOG(K3)-INT(LOG(K3)))),c_s1:C_f1,1)<VLOOKUP((10^(LOG(K3)-INT(LOG(K3)))),c_s1:C_f1,2)-(10^(LOG(K3)-INT(LOG(K3)))),VLOOKUP((10^(LOG(K3)-INT(LOG(K3)))),c_s1:C_f1,1),VLOOKUP((10^(LOG(K3)-INT(LOG(K3)))),c_s1:C_f1,2)) -> 8.2
B8: Closest E48 Value | C8: =(IF((10^(LOG(C3)-INT(LOG(C3)))*100)-VLOOKUP((10^(LOG(C3)-INT(LOG(C3)))*100),E48_s:E48_f,1)<VLOOKUP((10^(LOG(C3)-INT(LOG(C3)))*100),E48_s:E48_f,2)-(10^(LOG(C3)-INT(LOG(C3)))*100),VLOOKUP((10^(LOG(C3)-INT(LOG(C3)))*100),E48_s:E48_f,1),VLOOKUP((10^(LOG(C3)-INT(LOG(C3)))*100),E48_s:E48_f,2)))*10^INT(LOG(C3))/100 -> 100 | E8: 470 | F8: 680 | G8: 110 | H8: 113 | J8: 1.2 | K8: 1.5
B9: Closest E96 Value | C9: =(IF((10^(LOG(C3)-INT(LOG(C3)))*100)-VLOOKUP((10^(LOG(C3)-INT(LOG(C3)))*100),E96_s:E96_f,1)<VLOOKUP((10^(LOG(C3)-INT(LOG(C3)))*100),E96_s:E96_f,2)-(10^(LOG(C3)-INT(LOG(C3)))*100),VLOOKUP((10^(LOG(C3)-INT(LOG(C3)))*100),E96_s:E96_f,1),VLOOKUP((10^(LOG(C3)-INT(LOG(C3)))*100),E96_s:E96_f,2)))*10^INT(LOG(C3))/100 -> 100 | E9: 680 | F9: 1000 | G9: 113 | H9: 115 | J9: 1.5 | K9: 1.8 | P9: Notes: | Q9: If I use the value in column K it rounds up
E10: E12 | G10: 115 | H10: 118 | J10: 1.8 | K10: 2.2 | Q10: If I use the value in column J it rounds down
E11: 100 | F11: 120 | G11: 118 | H11: 121 | J11: 2.2 | K11: 2.7
E12: 120 | F12: 150 | G12: 121 | H12: 124 | J12: 2.7 | K12: 3.3
E13: 150 | F13: 180 | G13: 124 | H13: 127 | J13: 3.3 | K13: 3.9
E14: 180 | F14: 220 | G14: 127 | H14: 130 | J14: 3.9 | K14: 4.7
E15: 220 | F15: 270 | G15: 130 | H15: 133 | J15: 4.7 | K15: 5.6
E16: 270 | F16: 330 | G16: 133 | H16: 137 | J16: 5.6 | K16: 6.8
E17: 330 | F17: 390 | G17: 137 | H17: 140 | J17: 6.8 | K17: 8.2
E18: 390 | F18: 470 | G18: 140 | H18: 143 | J18: 8.2 | K18: 10
E19: 470 | F19: 560 | G19: 143 | H19: 147 | J19: C values greater than 10nF
E20: 560 | F20: 680 | G20: 147 | H20: 150 | J20: 1 | K20: 1.5 | L20: =IF((10^(LOG(K3)-INT(LOG(K3))))-VLOOKUP((10^(LOG(K3)-INT(LOG(K3)))),C_s2:C_f2,1)<VLOOKUP((10^(LOG(K3)-INT(LOG(K3)))),C_s2:C_f2,2)-(10^(LOG(K3)-INT(LOG(K3)))),VLOOKUP((10^(LOG(K3)-INT(LOG(K3)))),C_s2:C_f2,1),VLOOKUP((10^(LOG(K3)-INT(LOG(K3)))),C_s2:C_f2,2)) -> 6.8
E21: 680 | F21: 820 | G21: 150 | H21: 154 | J21: 1.5 | K21: 2.2
E22: 820 | F22: 1000 | G22: 154 | H22: 158 | J22: 2.2 | K22: 3.3
E23: E24 | G23: 158 | H23: 162 | J23: 3.3 | K23: 4.7
E24: 100 | F24: 110 | G24: 162 | H24: 165 | J24: 4.7 | K24: 6.8
E25: 110 | F25: 120 | G25: 165 | H25: 169 | J25: 6.8 | K25: 10
E26: 120 | F26: 130 | G26: 169 | H26: 174
E27: 130 | F27: 150 | G27: 174 | H27: 178
E28: 150 | F28: 160 | G28: 178 | H28: 182
E29: 160 | F29: 180 | G29: 182 | H29: 187
E30: 180 | F30: 200 | G30: 187 | H30: 191
E31: 200 | F31: 220 | G31: 191 | H31: 196
E32: 220 | F32: 240 | G32: 196 | H32: 200
E33: 240 | F33: 270 | G33: 200 | H33: 205
E34: 270 | F34: 300 | G34: 205 | H34: 210
E35: 300 | F35: 330 | G35: 210 | H35: 215
E36: 330 | F36: 360 | G36: 215 | H36: 221
E37: 360 | F37: 390 | G37: 221 | H37: 226
E38: 390 | F38: 430 | G38: 226 | H38: 232
E39: 430 | F39: 470 | G39: 232 | H39: 237
E40: 470 | F40: 510 | G40: 237 | H40: 243
E41: 510 | F41: 560 | G41: 243 | H41: 249
E42: 560 | F42: 620 | G42: 249 | H42: 255
E43: 620 | F43: 680 | G43: 255 | H43: 261
E44: 680 | F44: 750 | G44: 261 | H44: 267
E45: 750 | F45: 820 | G45: 267 | H45: 274
E46: 820 | F46: 910 | G46: 274 | H46: 280
E47: 910 | F47: 1000 | G47: 280 | H47: 287
E48: E48 | G48: 287 | H48: 294
E49: 100 | F49: 105 | G49: 294 | H49: 301
E50: 105 | F50: 110 | G50: 301 | H50: 309
E51: 110 | F51: 115 | G51: 309 | H51: 316
E52: 115 | F52: 121 | G52: 316 | H52: 324
E53: 121 | F53: 127 | G53: 324 | H53: 332
E54: 127 | F54: 133 | G54: 332 | H54: 340
E55: 133 | F55: 140 | G55: 340 | H55: 348
E56: 140 | F56: 147 | G56: 348 | H56: 357
E57: 147 | F57: 154 | G57: 357 | H57: 365
E58: 154 | F58: 162 | G58: 365 | H58: 374
E59: 162 | F59: 169 | G59: 374 | H59: 383
E60: 169 | F60: 178 | G60: 383 | H60: 392
E61: 178 | F61: 187 | G61: 392 | H61: 402
E62: 187 | F62: 196 | G62: 402 | H62: 412
E63: 196 | F63: 205 | G63: 412 | H63: 422
E64: 205 | F64: 215 | G64: 422 | H64: 432
E65: 215 | F65: 226 | G65: 432 | H65: 442
E66: 226 | F66: 237 | G66: 442 | H66: 453
E67: 237 | F67: 249 | G67: 453 | H67: 464
E68: 249 | F68: 261 | G68: 464 | H68: 475
E69: 261 | F69: 274 | G69: 475 | H69: 487
E70: 274 | F70: 287 | G70: 487 | H70: 499
E71: 287 | F71: 301 | G71: 499 | H71: 511
E72: 301 | F72: 316 | G72: 511 | H72: 523
E73: 316 | F73: 332 | G73: 523 | H73: 536
E74: 332 | F74: 348 | G74: 536 | H74: 549
E75: 348 | F75: 365 | G75: 549 | H75: 562
E76: 365 | F76: 383 | G76: 562 | H76: 576
E77: 383 | F77: 402 | G77: 576 | H77: 590
E78: 402 | F78: 422 | G78: 590 | H78: 604
E79: 422 | F79: 442 | G79: 604 | H79: 619
E80: 442 | F80: 464 | G80: 619 | H80: 634
E81: 464 | F81: 487 | G81: 634 | H81: 649
E82: 487 | F82: 511 | G82: 649 | H82: 665
E83: 511 | F83: 536 | G83: 665 | H83: 681
E84: 536 | F84: 562 | G84: 681 | H84: 698
E85: 562 | F85: 590 | G85: 698 | H85: 715
E86: 590 | F86: 619 | G86: 715 | H86: 732
E87: 619 | F87: 649 | G87: 732 | H87: 750
E88: 649 | F88: 681 | G88: 750 | H88: 768
E89: 681 | F89: 715 | G89: 768 | H89: 787
E90: 715 | F90: 750 | G90: 787 | H90: 806
E91: 750 | F91: 787 | G91: 806 | H91: 825
E92: 787 | F92: 825 | G92: 825 | H92: 845
E93: 825 | F93: 866 | G93: 845 | H93: 866
E94: 866 | F94: 909 | G94: 866 | H94: 887
E95: 909 | F95: 953 | G95: 887 | H95: 909
E96: 953 | F96: 1000 | G96: 909 | H96: 931
G97: 931 | H97: 953
G98: 953 | H98: 976
G99: 976 | H99: 1000

Sheet partData (hidden)
A1: 1 | B1: 2 | C1: 3 | D1: 4 | E1: 5 | F1: 6 | G1: 7 | H1: 8 | I1: 9 | J1: 10 | K1: 11 | L1: 12 | M1: 13 | N1: 14 | O1: 15 | P1: 16 | Q1: 17 | R1: 18 | S1: 19 | T1: 20 | U1: 21 | V1: 22 | W1: =V1+1 -> 23 | X1: =W1+1 -> 24 | Y1: =X1+1 -> 25 | Z1: 26 | AA1: 27 | AB1: 28 | AC1: 0
A2: Part # | B2: VIN_min | C2: VIN_max | D2: Io,rated | E2: Fsw_1 | F2: Fsw_2 | G2: Fsw_3 | H2: OC clamp | I2: tonmin | J2: Vref | K2: OC Fault | L2: OV Fault | M2: VCC LDO Voltage | N2: VIN_min_bias | O2: toffmin | P2: R_HS | Q2: R_LS | R2: OC gain | S2: I_ss | T2: EN_rise | U2: EN_fall | V2: Ioc_neg_max | W2: Rtrip_min | X2: Rtrip_max | Y2: Rtrip_calc | Z2: Ilim_min | AA2: ILIM_Tol | AB2: Rboot_rec | AC2: =AC98/10 -> 0.001
A3: TPS548A28 | B3: 4 | C3: 16 | D3: 14 | E3: 600 | F3: 800 | G3: 1000 | H3: 15 | I3: 70 | J3: 0.6 | K3: Hiccup | L3: Latch Off | M3: 3 | N3: 2 .7 | O3: 220 | P3: 10.2 | Q3: 3.1 | R3: 60000 | S3: 36 | T3: =T7 -> 1.22 | U3: =U7 -> 1.02 | V3: -8 | W3: 4 | X3: 14.7 | Y3: =MAX(W3,MIN(X3,-5.078*LN( I_lim_target) + 17.066,R3*0.85/I_lim_target*10^-3)) -> 14.7 | Z3: =MIN(I_lim_typ*0.85,28.4*EXP(-0.195*Rtrip)) -> 0.3892198784 | AA3: =(Z3-I_lim_typ)/I_lim_typ -> -0.7145720891 | AB3: 0 | AC3: 0.00102
A4: TPS548A29 | B4: 4 | C4: 16 | D4: 14 | E4: 600 | F4: 800 | G4: 1000 | H4: 15 | I4: 70 | J4: 0.6 | K4: Hiccup | L4: Latch Off | M4: 4.5 | N4: 2 .7 | O4: 220 | P4: 8.2 | Q4: 2.6 | R4: 60000 | S4: 36 | T4: =T3 -> 1.22 | U4: 1.02 | V4: -8 | W4: 4 | X4: 14.7 | Y4: =Y3 -> 14.7 | Z4: =Z3 -> 0.3892198784 | AA4: -0.7145720891 | AB4: =AB3 -> 0 | AC4: 0.00105
A5: TPS548B27 | B5: 4 | C5: 16 | D5: 20 | E5: 600 | F5: 800 | G5: 1000 | H5: 20.9 | I5: 70 | J5: 0.6 | K5: Hiccup | L5: Latch Off | M5: 3 | N5: 2 .7 | O5: 220 | P5: 7.2 | Q5: 2.3 | R5: 120000 | S5: 36 | T5: =T4 -> 1.22 | U5: 1.02 | V5: -8 | W5: 0 | X5: 20 | Y5: =MAX(W5,MIN(X5,-10.15*LN( I_lim_target) + 34.7,R5*0.9/I_lim_target*10^-3)) -> 20 | Z5: =MIN(I_lim_typ*0.9,29.487*EXP(-0.097*Rtrip)) -> 1.227272727 | AA5: -0.1 | AB5: 0 | AC5: 0.00107
A6: TPS548B28 | B6: 4 | C6: 16 | D6: 20 | E6: 600 | F6: 800 | G6: 1000 | H6: 20.9 | I6: 70 | J6: 0.6 | K6: Hiccup | L6: Latch Off | M6: 3 | N6: 2 .7 | O6: 220 | P6: 7.2 | Q6: 2.3 | R6: 120000 | S6: 36 | T6: 1.22 | U6: 1.02 | V6: -8 | W6: 0 | X6: 20 | Y6: =MAX(W6,MIN(X6,-10.15*LN( I_lim_target) + 34.7,R6*0.9/I_lim_target*10^-3)) -> 20 | Z6: =MIN(I_lim_typ*0.9,29.487*EXP(-0.097*Rtrip)) -> 1.227272727 | AA6: =(Z6-I_lim_typ)/I_lim_typ -> -0.1 | AB6: 0 | AC6: 0.0011
A7: TPS54J060 | B7: 4 | C7: 16 | D7: 6 | E7: 1100 | F7: 2200 | G7: 600 | H7: 9.5 | I7: 70 | J7: 0.9 | K7: Latch Off | L7: Latch Off | M7: 3 | N7: 2.7 | O7: 220 | P7: 25 | Q7: 9.2 | R7: 30000 | S7: 9 | T7: 1.22 | U7: 1.02 | V7: -2.8 | W7: 3.74 | X7: 30.1 | Y7: =MAX(W7,MIN(X7,17.987*I_lim_target^(-0.787),R7*0.88/I_lim_target*10^-3)) -> 22.5243964 | Z7: =MIN(I_lim_typ*0.88,37.996*Rtrip^(-1.254)) -> 0.7876618973 | AA7: -0.4223812753 | AB7: 0 | AC7: 0.00113
A8: TPS54J061 | B8: =B7 -> 4 | C8: 16 | D8: 6 | E8: 1100 | F8: 2200 | G8: 600 | H8: 9.5 | I8: 70 | J8: 0.6 | K8: Hiccup | L8: Latch Off | M8: =M7 -> 3 | N8: 2.7 | O8: 220 | P8: 25 | Q8: 9.2 | R8: 30000 | S8: 9 | T8: 1.22 | U8: 1.02 | V8: =V7 -> -2.8 | W8: =W7 -> 3.74 | X8: =X7 -> 30.1 | Y8: =Y7 -> 22.5243964 | Z8: =Z7 -> 0.7876618973 | AA8: -0.4223812753 | AB8: =AB7 -> 0 | AC8: 0.00115
A9: TPS54JA20 | B9: 4 | C9: 16 | D9: 12 | E9: 600 | F9: 800 | G9: 1000 | H9: 15 | I9: 70 | J9: 0.9 | K9: Latch Off | L9: Latch Off | M9: 3 | N9: 2 .7 | O9: 220 | P9: 10.2 | Q9: 3.1 | R9: 60000 | S9: 36 | T9: =T8 -> 1.22 | U9: 1.02 | V9: -8 | W9: 4 | X9: 14.7 | Y9: =Y3 -> 14.7 | Z9: =Z3 -> 0.3892198784 | AA9: -0.7145720891 | AB9: =AB3 -> 0 | AC9: 0.00118
A10: TPS54JB20 | B10: 4 | C10: 16 | D10: 20 | E10: 600 | F10: 800 | G10: 1000 | H10: 20.9 | I10: 70 | J10: 0.9 | K10: Latch Off | L10: Latch Off | M10: 3 | N10: 2 .7 | O10: 220 | P10: 7.2 | Q10: 2.3 | R10: 120000 | S10: 36 | T10: 1.22 | U10: 1.02 | V10: -8 | W10: 0 | X10: 20 | Y10: =Y7 -> 22.5243964 | Z10: =Z5 -> 1.227272727 | AA10: -0.1 | AB10: =AB5 -> 0 | AC10: 0.00121
AC11: 0.00124
B12: Selected device | C12: =DeviceCalculator!C9 -> TPS54J061 | AC12: 0.00127
AC13: 0.0013
B14: fsw options | C14: LL options | F14: FSW(kHz) | G14: Mode | H14: RMODE(kΩ) | I14: =F14 -> FSW(kHz) | J14: =G14 -> Mode | AC14: 0.00133
B15: =VLOOKUP($C$12,partData!$A$3:$N$10,5,FALSE) -> 1100 | C15: FCCM | E15: =CONCATENATE(F15&G15) -> 1100FCCM | F15: =B15 -> 1100 | G15: FCCM | H15: Connect to AGND | I15: =F15 -> 1100 | J15: =G15 -> FCCM | V15: Extra step to round down | AC15: 0.00137
B16: =VLOOKUP($C$12,partData!$A$3:$N$10,6,FALSE) -> 2200 | C16: DCM | E16: =CONCATENATE(F16&G16) -> 2200FCCM | F16: =B16 -> 2200 | G16: FCCM | H16: 30.1 | I16: =F16 -> 2200 | J16: =G16 -> FCCM | S16: rfb | T16: =DeviceCalculator!D122 -> 5.05 | U16: =INDEX(NSV,MATCH(MIN(ABS(NSV-T16)),ABS(NSV-T16),0)) -> 4.99 | AC16: 0.0014
B17: =VLOOKUP($C$12,partData!$A$3:$N$10,7,FALSE) -> 600 | E17: 600FCCM | F17: =B17 -> 600 | G17: FCCM | H17: 60.4 | I17: 600 | J17: FCCM | S17: ren | T17: =DeviceCalculator!D145 -> 17.02081231 | U17: =INDEX(NSV,MATCH(MIN(ABS(NSV-T17)),ABS(NSV-T17),0)) -> 16.9 | AC17: 0.00143
E18: 1100DCM | F18: =B15 -> 1100 | G18: DCM | H18: Connect to VCC | I18: 1100 | J18: DCM | S18: rtrip | T18: =Rtrip_calc -> 22.5243964 | U18: =INDEX(NSV,MATCH(MIN(ABS(NSV-T18)),ABS(NSV-T18),0)) -> 22.6 | V18: =INDEX(NSV,MATCH(MIN(ABS(NSV-T18/1.024)),ABS(NSV-T18/1.024),0)) -> 22.1 | W18: =IF(U18<=T18,U18,V18) -> 22.1 | AC18: 0.00147
E19: 2200DCM | F19: =B16 -> 2200 | G19: DCM | H19: 243 | I19: 2200 | J19: DCM | AC19: 0.0015
E20: =CONCATENATE(F20&G20) -> 600DCM | F20: =B17 -> 600 | G20: DCM | H20: 121 | I20: 600 | J20: DCM | AC20: 0.00154
AC21: 0.00158
B22: BBJ min ILIM curve fit | H22: JJR 20A min ILIM curve fit | N22: JJR 12A/15A | AC22: 0.00162
H23: Rtrip | I23: ILIM Min(A) | N23: Rtrip | O23: ILIM Min(A) | AC23: 0.00165
H24: 5.23 | I24: =22.9*(1-0.164) -> 19.1444 | N24: 4.02 | O24: 14.7 | AC24: 0.00169
H25: 6.04 | I25: 17.627 | N25: 4.99 | O25: 10.5 | AC25: 0.00174
H26: 7.5 | I26: 14.05 | N26: 6.04 | O26: 8.2 | AC26: 0.00178
H27: 10 | I27: 10.5 | N27: 7.5 | O27: 6.2 | AC27: 0.00182
H28: 14.7 | I28: 6.7 | N28: 10 | O28: 3.9 | AC28: 0.00187
H29: 20 | I29: 4.736 | N29: 14.7 | O29: 1.7 | AC29: 0.00191
H30: 28.7 | I30: 1.793 | AC30: 0.00196
AC31: =AC127/10 -> 0.002
AC32: 0.00205
AC33: 0.0021
AC34: 0.00215
AC35: 0.00221
AC36: 0.00226
AC37: 0.00232
AC38: 0.00237
AC39: 0.00243
AC40: 0.00249
AC41: 0.00255
AC42: 0.00261
AC43: 0.00267
AC44: 0.00274
AC45: 0.0028
AC46: 0.00287
AC47: 0.00294
AC48: 0.00301
AC49: 0.00309
AC50: 0.00316
AC51: 0.00324
AC52: 0.00332
AC53: 0.0034
AC54: 0.00348
AC55: 0.00357
AC56: 0.00365
AC57: 0.00374
AC58: 0.00383
AC59: 0.00392
AC60: 0.00402
AC61: 0.00412
AC62: 0.00422
AC63: =AC159/10 -> 0.00432
AC64: 0.00442
AC65: 0.00453
AC66: 0.00464
AC67: 0.00475
AC68: 0.00487
AC69: 0.00499
AC70: 0.00511
AC71: 0.00523
AC72: 0.00536
AC73: 0.00549
AC74: 0.00562
AC75: 0.00576
AC76: 0.0059
AC77: 0.00604
AC78: 0.00619
AC79: 0.00634
AC80: 0.00649
AC81: =AC177/10 -> 0.00665
AC82: =AC178/10 -> 0.00681
AC83: 0.00698
AC84: 0.00715
AC85: 0.00732
AC86: 0.0075
AC87: 0.00768
AC88: 0.00787
AC89: 0.00806
AC90: 0.00825
AC91: 0.00845
AC92: 0.00866
AC93: 0.00887
AC94: 0.00909
AC95: 0.00931
AC96: 0.00953
AC97: 0.00976
AC98: 0.01
AC99: 0.0102
AC100: 0.0105
AC101: 0.0107
AC102: 0.011
AC103: 0.0113
AC104: 0.0115
AC105: 0.0118
AC106: 0.0121
AC107: 0.0124
AC108: 0.0127
AC109: 0.013
AC110: 0.0133
AC111: 0.0137
AC112: 0.014
AC113: 0.0143
AC114: 0.0147
AC115: 0.015
AC116: 0.0154
AC117: 0.0158
AC118: 0.0162
AC119: 0.0165
AC120: 0.0169
AC121: 0.0174
AC122: 0.0178
AC123: 0.0182
AC124: 0.0187
AC125: 0.0191
AC126: 0.0196
AC127: 0.02
AC128: 0.0205
AC129: 0.021
AC130: 0.0215
AC131: 0.0221
AC132: 0.0226
AC133: 0.0232
AC134: 0.0237
AC135: 0.0243
AC136: 0.0249
AC137: 0.0255
AC138: 0.0261
AC139: 0.0267
AC140: 0.0274
AC141: 0.028
AC142: 0.0287
AC143: 0.0294
AC144: 0.0301
AC145: =AC241/10 -> 0.0309
AC146: 0.0316
AC147: 0.0324
AC148: 0.0332
AC149: 0.034
AC150: 0.0348
AC151: 0.0357
AC152: 0.0365
AC153: 0.0374
AC154: 0.0383
AC155: 0.0392
AC156: 0.0402
AC157: 0.0412
AC158: 0.0422
AC159: 0.0432
AC160: 0.0442
AC161: 0.0453
AC162: 0.0464
AC163: 0.0475
AC164: 0.0487
AC165: 0.0499
AC166: 0.0511
AC167: 0.0523
AC168: 0.0536
AC169: 0.0549
AC170: 0.0562
AC171: 0.0576
AC172: 0.059
AC173: 0.0604
AC174: 0.0619
AC175: 0.0634
AC176: 0.0649
AC177: 0.0665
AC178: 0.0681
AC179: 0.0698
AC180: 0.0715
AC181: 0.0732
AC182: 0.075
AC183: 0.0768
AC184: 0.0787
AC185: 0.0806
AC186: 0.0825
AC187: 0.0845
AC188: 0.0866
AC189: 0.0887
AC190: 0.0909
AC191: 0.0931
AC192: 0.0953
AC193: 0.0976
AC194: 0.1
AC195: 0.102
AC196: 0.105
AC197: 0.107
AC198: 0.11
AC199: 0.113
AC200: 0.115
... 378 more rows

Sheet Extra (hidden)
B3: Validation Options
B4: Open
B5: Complete
B6: Not Applicable

Sheet revisionNotes
A1: Date | B1: Change
A2: 2020-05-28 | B2: Added TPS54J060/1 schematic checklist (6aSchematicChecklist tab)
A3: 2020-05-29 | B3: Added TPS54J060/1 layout checklist (6aLayoutChecklist tab)
A4: 2020-06-29 | B4: Corrected equation for calculating Q_input. Added (1-D) term.
A5: 2020-08-18 | B5: Added calculation for EN max voltage
A6: 2020-09-30 | B6: Added macros for design checks
A7: 2020-12-22 | B7: Added Rff. Changed Rtrip selection to be based on current limit value for margin.
A8: 2021-04-20 | B8: Removed RC constant check on Cff and FB divider from 6A_SchematicChecklist. Added check for Rff to 6A_ShematicChecklist.
A9: 2021-08-03 | B9: Added Simplis Export Variable

Sheet Disclaimer
B2: Important notice and disclaimer
B3: TI PROVIDES TECHNICAL AND RELIABILITY DATA (INCLUDING DATASHEETS), DESIGN RESOURCES (INCLUDING REFERENCE DESIGNS), APPLICATION OR OTHER DESIGN ADVICE, WEB TOOLS, SAFETY INFORMATION, AND OTHER RESOURCES “AS IS” AND WITH ALL FAULTS, AND DISCLAIMS ALL WARRANTIES, EXPRESS AND IMPLIED, INCLUDING WITHOUT LIMITATION ANY IMPLIED WARRANTIES OF MERCHANTABILITY, FITNESS FOR A PARTICULAR PURPOSE OR NON-INFRINGEMENT OF THIRD PARTY INTELLECTUAL PROPERTY RIGHTS.
B4: These resources are intended for skilled developers designing with TI products. You are solely responsible for (1) selecting the appropriate TI products for your application, (2) designing, validating and testing your application, and (3) ensuring your application meets applicable standards, and any other safety, security, or other requirements.
B5: These resources are subject to change without notice. TI grants you permission to use these resources only for development of an application that uses the TI products described in the resource. Other reproduction and display of these resources is prohibited. No license is granted to any other TI intellectual property right or to any third party intellectual property right. TI disclaims responsibility for, and you will fully indemnify TI and its representatives against, any claims, damages, costs, losses, and liabilities arising out of your use of these resources.
B6: TI’s products are provided subject to TI’s Terms of Sale or other applicable terms available either on ti.com or provided in conjunction with such TI products. TI’s provision of these resources does not expand or otherwise alter TI’s applicable warranties or warranty disclaimers for TI products.
